bitfinex/quotes_BTCUSD_20230904
["timestamp","ask_amount","ask_price","bid_price","bid_amount"]
[1693797554235,0.0149,26057.0,26056.0,2.44868898]
[1693797554539,0.0149,26057.0,26056.0,2.44748898]
[1693797554773,0.0149,26057.0,26056.0,2.44712898]
[1693797554974,0.0149,26057.0,26056.0,2.44706898]
[1693797555202,0.0149,26057.0,26056.0,2.44694898]
[1693797555406,0.0149,26057.0,26056.0,2.44586898]
[1693797555604,0.0149,26057.0,26056.0,2.44598898]
[1693797555762,0.0149,26057.0,26056.0,2.44586898]
[1693797555967,0.0149,26057.0,26056.0,2.44574898]
[1693797556166,0.0149,26057.0,26056.0,2.44556898]
[1693797556395,0.0149,26057.0,26056.0,2.44550898]
[1693797556596,0.0149,26057.0,26056.0,2.44526898]
[1693797556795,0.0149,26057.0,26056.0,2.44496898]
[1693797556993,0.0149,26057.0,26056.0,2.44484898]
[1693797557180,0.0149,26057.0,26056.0,2.44472898]
[1693797557379,0.0149,26057.0,26056.0,2.44460898]
[1693797557582,0.0149,26057.0,26056.0,2.44490898]
[1693797557771,0.0149,26057.0,26056.0,2.44502898]
[1693797557976,0.0149,26057.0,26056.0,2.44544898]
[1693797558199,0.0149,26057.0,26056.0,2.44496898]
[1693797558398,0.0149,26057.0,26056.0,2.44466898]
[1693797558594,0.0149,26057.0,26056.0,2.44454898]
[1693797558833,0.0149,26057.0,26056.0,2.44460898]
[1693797559029,0.0149,26057.0,26056.0,2.62655761]
[1693797559200,0.0149,26057.0,26056.0,2.62697761]
[1693797559401,0.0149,26057.0,26056.0,2.62619761]
[1693797559633,0.0149,26057.0,26056.0,2.62601761]
[1693797559841,0.0149,26057.0,26056.0,2.62541761]
[1693797560058,0.0149,26057.0,26056.0,2.62661761]
[1693797560290,0.0149,26057.0,26056.0,2.62493761]
[1693797560501,0.0149,26057.0,26056.0,2.62535761]
[1693797560723,0.0149,26057.0,26056.0,2.62541761]
[1693797560964,0.0149,26057.0,26056.0,2.62511761]
[1693797561213,0.0149,26057.0,26056.0,2.62499761]
[1693797561614,0.0149,26057.0,26056.0,2.48793745]
[1693797561817,0.0149,26057.0,26056.0,2.48679745]
[1693797562345,0.0149,26057.0,26056.0,2.03335611]
[1693797562546,0.0149,26057.0,26056.0,2.48791669]
[1693797562761,0.0149,26057.0,26056.0,2.48695669]
[1693797562962,0.0149,26057.0,26056.0,2.48683669]
[1693797563124,0.0149,26057.0,26056.0,2.48869669]
[1693797563327,0.0149,26057.0,26056.0,2.48827669]
[1693797563872,0.0149,26057.0,26056.0,2.48659669]
[1693797564100,0.0149,26057.0,26056.0,2.48641669]
[1693797564298,0.0149,26057.0,26056.0,2.48593669]
[1693797564503,0.0149,26057.0,26056.0,2.48119669]
[1693797564710,0.0149,26057.0,26056.0,2.47537669]
[1693797564885,0.0149,26057.0,26056.0,2.47621669]
[1693797565220,0.0149,26057.0,26056.0,2.47615669]
[1693797565417,0.0149,26057.0,26056.0,2.47939669]
[1693797565960,0.0149,26057.0,26056.0,2.70711071]
[1693797566158,0.0149,26057.0,26056.0,2.71251071]
[1693797566416,0.0149,26057.0,26056.0,2.71215071]
[1693797566610,0.0149,26057.0,26056.0,2.71059071]
[1693797566805,0.0149,26057.0,26056.0,2.71053071]
[1693797567022,0.0149,26057.0,26056.0,2.71281071]
[1693797567351,0.0149,26057.0,26056.0,2.71521071]
[1693797567660,0.0149,26057.0,26056.0,2.71467071]
[1693797567856,0.0149,26057.0,26056.0,2.53309949]
[1693797568032,0.0149,26057.0,26056.0,2.53417949]
[1693797568236,0.0149,26057.0,26056.0,2.53411949]
[1693797568467,0.0149,26057.0,26056.0,2.53399949]
[1693797568669,0.0149,26057.0,26056.0,2.53381949]
[1693797568821,0.0149,26057.0,26056.0,2.53393949]
[1693797569003,0.0149,26057.0,26056.0,2.53345949]
[1693797569199,0.0149,26057.0,26056.0,2.53369949]
[1693797569429,0.0149,26057.0,26056.0,2.53351949]
[1693797569822,0.0149,26057.0,26056.0,2.53321949]
[1693797570023,0.0149,26057.0,26056.0,2.53339949]
[1693797570291,0.0149,26057.0,26056.0,2.53297949]
[1693797570494,0.0149,26057.0,26056.0,2.53123949]
[1693797570682,0.0149,26057.0,26056.0,2.53099949]
[1693797570993,0.0149,26057.0,26056.0,2.30316547]
[1693797571161,0.0149,26057.0,26056.0,2.30310547]
[1693797571378,0.0149,26057.0,26056.0,2.30352547]
[1693797571574,0.0149,26057.0,26056.0,2.30406547]
[1693797571774,0.0149,26057.0,26056.0,2.30412547]
[1693797571975,0.0149,26057.0,26056.0,2.30406547]
[1693797572136,0.0149,26057.0,26056.0,2.30580547]
[1693797572342,0.0099,26057.0,26056.0,2.30448547]
[1693797572540,0.0099,26057.0,26056.0,2.30460547]
[1693797572799,0.0099,26057.0,26056.0,2.30442547]
[1693797572998,0.0925,26057.0,26056.0,2.48392153]
[1693797573238,0.0925,26057.0,26056.0,2.18845361]
[1693797573957,0.0925,26057.0,26056.0,2.52554039]
[1693797574488,0.0925,26057.0,26056.0,2.29746813]
[1693797575117,0.0925,26057.0,26056.0,2.28256813]
[1693797575342,0.0925,26057.0,26056.0,2.33256813]
[1693797575539,0.0925,26057.0,26056.0,2.30756813]
[1693797575763,0.0925,26057.0,26056.0,2.28256813]
[1693797575969,0.0925,26057.0,26056.0,2.33256813]
[1693797576304,0.0099,26057.0,26056.0,2.48282153]
[1693797576508,0.0099,26057.0,26056.0,2.49110153]
[1693797576662,0.0099,26057.0,26056.0,2.25996927]
[1693797576870,0.0099,26057.0,26056.0,2.25978927]
[1693797577064,0.0099,26057.0,26056.0,2.25954927]
[1693797577399,0.0099,26057.0,26056.0,2.25786927]
[1693797577610,0.0099,26057.0,26056.0,2.25756927]
[1693797577814,0.0099,26057.0,26056.0,2.25702927]
[1693797577992,0.0099,26057.0,26056.0,2.25330927]
[1693797578196,0.0099,26057.0,26056.0,2.25270927]
[1693797578392,0.0099,26057.0,26056.0,2.25300927]
[1693797578605,0.0099,26057.0,26056.0,2.25282927]
[1693797578806,0.0099,26057.0,26056.0,2.25270927]
[1693797578986,0.0099,26057.0,26056.0,2.25276927]
[1693797579327,0.0099,26057.0,26056.0,2.48029062]
[1693797579481,0.0099,26057.0,26056.0,2.48047062]
[1693797579663,0.0099,26057.0,26056.0,2.47933062]
[1693797579863,0.0099,26057.0,26056.0,2.47914062]
[1693797580067,0.0099,26057.0,26056.0,2.37816062]
[1693797581483,0.0099,26057.0,26056.0,2.45394062]
[1693797581889,0.0099,26057.0,26056.0,2.37816062]
[1693797584184,0.0099,26057.0,26056.0,2.45478062]
[1693797584348,0.0099,26057.0,26056.0,2.37816062]
[1693797584653,0.0099,26057.0,26056.0,2.45424062]
[1693797584843,0.0099,26057.0,26056.0,2.45400062]
[1693797585048,0.0099,26057.0,26056.0,2.37816062]
[1693797585345,0.0099,26057.0,26056.0,2.37316062]
[1693797586952,0.0925,26057.0,26056.0,2.55566213]
[1693797587351,0.0925,26057.0,26056.0,2.37316062]
[1693797589265,0.0925,26057.0,26056.0,2.18130062]
[1693797590237,0.0925,26057.0,26056.0,3.72068498]
[1693797590238,0.0099,26057.0,26056.0,3.72068498]
[1693797590465,0.0099,26057.0,26056.0,4.2016673]
[1693797590674,0.0099,26057.0,26056.0,3.91269047]
[1693797590854,0.0099,26057.0,26056.0,3.91242262]
[1693797591229,0.0099,26057.0,26056.0,3.91194262]
[1693797591430,0.0099,26057.0,26056.0,3.91086262]
[1693797591634,0.0099,26057.0,26056.0,3.91350262]
[1693797592160,0.0099,26057.0,26056.0,3.91410262]
[1693797592471,0.0099,26057.0,26056.0,3.94914262]
[1693797592601,0.0099,26057.0,26056.0,3.94614262]
[1693797593031,0.0099,26057.0,26056.0,3.94746262]
[1693797593225,0.0099,26057.0,26056.0,3.94734262]
[1693797593426,0.0099,26057.0,26056.0,3.97266262]
[1693797593745,0.0099,26057.0,26056.0,4.22223903]
[1693797593932,0.0099,26057.0,26056.0,4.24699903]
[1693797594240,0.0099,26057.0,26056.0,4.21899903]
[1693797594453,0.0099,26057.0,26056.0,4.21947903]
[1693797594957,0.0099,26057.0,26056.0,4.24483903]
[1693797595083,0.0099,26057.0,26056.0,4.24639903]
[1693797595292,0.0099,26057.0,26056.0,4.22139903]
[1693797595531,0.0099,26057.0,26056.0,4.21875903]
[1693797595724,0.0099,26057.0,26056.0,4.24567903]
[1693797595921,0.0099,26057.0,26056.0,4.23787903]
[1693797596146,0.0099,26057.0,26056.0,4.22875903]
[1693797596355,0.0099,26057.0,26056.0,4.22695903]
[1693797596502,0.0099,26057.0,26056.0,4.22779903]
[1693797596703,0.0099,26057.0,26056.0,4.22731903]
[1693797596917,0.0099,26057.0,26056.0,4.22623903]
[1693797597114,0.0099,26057.0,26056.0,4.22635903]
[1693797597315,0.0099,26057.0,26056.0,4.22467903]
[1693797597596,0.0099,26057.0,26056.0,4.21027903]
[1693797597798,0.0099,26057.0,26056.0,4.20883903]
[1693797597920,0.0099,26057.0,26056.0,4.35190974]
[1693797598139,0.020898,26059.0,26058.0,0.120955]
[1693797598350,0.0199,26060.0,26059.0,1.520955]
[1693797598553,0.0199,26060.0,26059.0,3.2853214]
[1693797598784,0.0199,26060.0,26059.0,3.49389071]
[1693797598983,0.0199,26060.0,26059.0,3.48417071]
[1693797599206,0.1510174,26075.0,26066.0,0.000955]
[1693797599409,0.02088938,26067.0,26066.0,1.63514898]
[1693797599582,0.0199,26067.0,26066.0,2.36859849]
[1693797599952,0.0199,26067.0,26066.0,1.94185144]
[1693797600170,0.0199,26075.0,26074.0,0.000955]
[1693797600377,0.0199,26077.0,26076.0,0.620955]
[1693797600595,0.0199,26077.0,26076.0,1.623267]
[1693797600763,0.001,26080.0,26079.0,1.520955]
[1693797601011,0.001,26080.0,26079.0,2.55539955]
[1693797601248,0.001,26080.0,26079.0,3.59737805]
[1693797601485,0.0199,26084.0,26083.0,1.520955]
[1693797601690,0.0199,26084.0,26083.0,2.93382436]
[1693797601925,0.0199,26084.0,26083.0,2.81235235]
[1693797602139,0.0199,26084.0,26083.0,2.91020158]
[1693797602335,0.07495902,26091.0,26085.0,0.02504098]
[1693797602544,0.07495902,26091.0,26085.0,1.02477395]
[1693797602747,0.07495902,26091.0,26085.0,2.34498771]
[1693797602962,0.08,26091.0,26085.0,2.84198618]
[1693797603166,0.02038299,26092.0,26085.0,1.7944363]
[1693797603167,0.08,26087.0,26085.0,1.7944363]
[1693797603375,0.27473471,26086.0,26085.0,0.35531784]
[1693797603576,0.36162085,26086.0,26085.0,0.38708678]
[1693797603782,0.1399,26086.0,26085.0,0.38708678]
[1693797604005,0.12,26084.0,26083.0,0.0199]
[1693797604214,0.2026,26084.0,26083.0,0.43198678]
[1693797604419,0.2026,26084.0,26083.0,0.33614626]
[1693797604644,0.12,26084.0,26083.0,0.52783626]
[1693797604854,0.12,26084.0,26083.0,0.69652435]
[1693797605056,0.12,26084.0,26083.0,0.70258435]
[1693797605261,0.12,26084.0,26083.0,0.70018435]
[1693797605475,0.08,26084.0,26083.0,0.71476435]
[1693797605717,0.002,26084.0,26083.0,2.52724985]
[1693797605914,0.0199,26086.0,26085.0,1.4]
[1693797606122,0.0199,26086.0,26085.0,2.54841504]
[1693797606318,0.0199,26086.0,26085.0,2.23266195]
[1693797606552,0.0199,26086.0,26085.0,3.39135124]
[1693797606758,0.0199,26086.0,26085.0,3.75390079]
[1693797606988,0.0199,26086.0,26085.0,3.55392079]
[1693797607206,0.0199,26086.0,26085.0,3.24472678]
[1693797607421,0.0199,26086.0,26085.0,3.15760678]
[1693797607645,0.0199,26086.0,26085.0,2.99830678]
[1693797607856,0.0199,26086.0,26085.0,2.29356678]
[1693797608061,0.0219,26086.0,26085.0,2.31642678]
[1693797608306,0.0219,26086.0,26085.0,2.33136678]
[1693797608509,0.0199,26086.0,26085.0,2.28474678]
[1693797608731,0.0999,26086.0,26085.0,1.97322678]
[1693797608941,0.2045,26086.0,26085.0,2.00788678]
[1693797609144,0.2045,26086.0,26085.0,1.98864678]
[1693797609347,0.2045,26086.0,26085.0,1.94008678]
[1693797609933,0.2045,26086.0,26085.0,1.91508678]
[1693797610093,0.2045,26086.0,26085.0,1.98937197]
[1693797610290,0.2045,26086.0,26085.0,2.26437197]
[1693797610713,0.2045,26086.0,26085.0,2.26537197]
[1693797610714,0.2025,26086.0,26085.0,2.26537197]
[1693797610924,0.2045,26086.0,26085.0,2.28937197]
[1693797611118,0.2045,26086.0,26085.0,1.38937197]
[1693797611525,0.2045,26086.0,26085.0,1.36537197]
[1693797611526,0.2025,26086.0,26085.0,1.36537197]
[1693797611748,0.2045,26086.0,26085.0,1.38937197]
[1693797612147,0.2245,26086.0,26085.0,1.38937197]
[1693797612951,0.2245,26086.0,26085.0,1.46845197]
[1693797613125,0.2245,26086.0,26085.0,1.38937197]
[1693797613353,0.1419,26086.0,26085.0,1.47433197]
[1693797613553,0.1419,26086.0,26085.0,1.49005197]
[1693797613799,0.1419,26086.0,26085.0,1.48945197]
[1693797614099,0.1419,26086.0,26085.0,1.48777197]
[1693797614275,0.1419,26086.0,26085.0,1.48741197]
[1693797614480,0.1419,26086.0,26085.0,1.48711197]
[1693797614678,0.1419,26086.0,26085.0,1.48741197]
[1693797614883,0.1419,26086.0,26085.0,1.48663197]
[1693797615080,0.1419,26086.0,26085.0,1.48855197]
[1693797615242,0.1419,26086.0,26085.0,1.48921197]
[1693797615441,0.1419,26086.0,26085.0,1.49185197]
[1693797615644,0.1419,26086.0,26085.0,1.49257197]
[1693797615882,0.1419,26086.0,26085.0,1.49029197]
[1693797616098,0.22808299,26092.0,26091.0,1.4]
[1693797616099,0.10038299,26092.0,26091.0,1.4]
[1693797616307,0.10038299,26092.0,26091.0,2.52441749]
[1693797616525,0.00038299,26092.0,26091.0,2.94287369]
[1693797616762,0.00038299,26092.0,26091.0,2.75478678]
[1693797616972,0.00038299,26092.0,26091.0,2.84765778]
[1693797617188,1.12,26100.0,26098.0,1.4]
[1693797617406,0.1,26099.0,26098.0,2.52437749]
[1693797617815,0.12,26099.0,26098.0,0.98262678]
[1693797618026,0.12,26099.0,26098.0,0.87862678]
[1693797618027,0.47746882,26099.0,26098.0,0.87862678]
[1693797618433,0.12,26093.0,26092.0,0.5]
[1693797618639,0.12,26093.0,26092.0,0.99058678]
[1693797618845,0.12,26093.0,26092.0,1.39678678]
[1693797619078,0.12,26093.0,26092.0,1.40032678]
[1693797619291,0.12,26093.0,26092.0,1.39516678]
[1693797619494,0.12,26093.0,26092.0,1.39804678]
[1693797619709,0.12,26093.0,26092.0,0.87320678]
[1693797619958,0.12,26093.0,26092.0,0.89358678]
[1693797620291,0.12,26093.0,26092.0,0.89712678]
[1693797620499,0.12,26093.0,26092.0,0.89358678]
[1693797620621,0.12,26093.0,26092.0,0.89154678]
[1693797620847,0.12,26093.0,26092.0,0.8486318]
[1693797621028,0.12,26093.0,26092.0,0.8719518]
[1693797621230,0.12,26093.0,26092.0,0.8826918]
[1693797621474,0.12,26093.0,26092.0,0.8606918]
[1693797621686,0.12,26093.0,26092.0,0.8598518]
[1693797621902,0.1649,26096.0,26093.0,0.9]
[1693797622109,0.12,26095.0,26094.0,0.68708678]
[1693797622527,0.12,26095.0,26094.0,0.79880678]
[1693797622704,0.12,26095.0,26094.0,0.79892678]
[1693797622937,0.1,26095.0,26094.0,1.89596678]
[1693797623122,0.12,26097.0,26096.0,0.9]
[1693797623256,0.12,26097.0,26096.0,1.58708678]
[1693797623472,0.12,26097.0,26096.0,1.80434678]
[1693797623831,0.12,26097.0,26096.0,0.88298678]
[1693797624038,0.12,26097.0,26096.0,1.38442678]
[1693797624276,0.12,26097.0,26096.0,1.42100678]
[1693797624387,0.12,26097.0,26096.0,1.42136678]
[1693797624594,0.12,26097.0,26096.0,1.39054678]
[1693797624797,0.12,26097.0,26096.0,1.43814264]
[1693797624996,0.12,26097.0,26096.0,1.46278264]
[1693797625203,0.12,26097.0,26096.0,1.48736264]
[1693797625543,0.12,26097.0,26096.0,1.46284264]
[1693797625708,0.12,26097.0,26096.0,1.48778264]
[1693797625905,0.12,26097.0,26096.0,1.48334264]
[1693797626107,0.12,26097.0,26096.0,1.45498264]
[1693797626509,0.45194305,26097.0,26096.0,0.88842264]
[1693797626732,0.45194305,26097.0,26096.0,0.86342264]
[1693797626983,0.45194305,26097.0,26096.0,0.75992264]
[1693797627433,0.45194305,26097.0,26096.0,0.45992264]
[1693797627434,0.3497,26097.0,26096.0,0.45992264]
[1693797627636,0.3497,26097.0,26096.0,0.07283586]
[1693797627842,0.3697,26097.0,26096.0,0.07283586]
[1693797628045,0.3897,26097.0,26096.0,0.12283586]
[1693797628416,0.3897,26097.0,26096.0,0.09783586]
[1693797628622,0.3897,26097.0,26096.0,0.12283586]
[1693797628760,0.3897,26097.0,26096.0,0.09783586]
[1693797629280,0.62034002,26097.0,26096.0,0.07283586]
[1693797629504,0.62034002,26097.0,26096.0,0.04783586]
[1693797629709,0.62034002,26097.0,26096.0,0.038]
[1693797630087,0.60034002,26097.0,26096.0,0.013]
[1693797630499,0.60034002,26097.0,26096.0,0.027]
[1693797630882,0.60034002,26097.0,26096.0,0.014]
[1693797631124,0.3697,26097.0,26096.0,0.014]
[1693797631365,0.62076877,26097.0,26096.0,0.036]
[1693797633100,0.3697,26097.0,26096.0,0.036]
[1693797633505,0.3897,26097.0,26096.0,0.036]
[1693797634140,0.66123444,26097.0,26096.0,0.036]
[1693797634483,0.3897,26097.0,26096.0,0.036]
[1693797634897,0.65961009,26097.0,26096.0,0.036]
[1693797635100,0.4994,26097.0,26096.0,0.036]
[1693797636125,0.4994,26097.0,26096.0,0.022]
[1693797636881,0.4994,26097.0,26096.0,0.036]
[1693797637463,0.4994,26097.0,26096.0,0.014]
[1693797637984,0.4994,26097.0,26096.0,0.036]
[1693797638640,0.49993725,26097.0,26096.0,0.036]
[1693797639199,0.75893452,26097.0,26096.0,0.036]
[1693797639397,0.49993725,26097.0,26096.0,0.036]
[1693797641151,0.79442643,26097.0,26096.0,0.036]
[1693797641350,0.49993725,26097.0,26096.0,0.036]
[1693797641591,0.88702403,26097.0,26096.0,0.036]
[1693797641793,0.88702403,26097.0,26093.0,0.35999999]
[1693797641794,0.08,26082.0,26081.0,0.08928725]
[1693797642005,0.01483471,26082.0,26081.0,0.61013878]
[1693797642207,0.2945,26086.0,26084.0,0.22516528]
[1693797642412,0.1497,26085.0,26084.0,0.22516528]
[1693797642822,0.2897,26085.0,26084.0,0.22516528]
[1693797643434,0.2897,26085.0,26084.0,0.25016528]
[1693797643435,0.52801295,26085.0,26084.0,0.25016528]
[1693797644045,0.53001295,26085.0,26084.0,0.24516528]
[1693797644249,0.2897,26085.0,26084.0,0.22816528]
[1693797644629,0.2907,26085.0,26084.0,0.23916528]
[1693797644804,0.2907,26085.0,26084.0,0.32845253]
[1693797644990,0.2907,26085.0,26084.0,0.10328725]
[1693797645407,0.1507,26085.0,26084.0,0.10328725]
[1693797645593,0.1507,26085.0,26084.0,0.51303088]
[1693797645861,0.1507,26085.0,26084.0,0.83706851]
[1693797646090,0.1507,26085.0,26084.0,1.22781529]
[1693797646289,0.1507,26085.0,26084.0,1.25807529]
[1693797646722,0.1507,26085.0,26084.0,1.33565529]
[1693797646926,0.1507,26085.0,26084.0,1.64233705]
[1693797646927,0.041,26085.0,26084.0,1.64233705]
[1693797647135,0.041,26085.0,26084.0,1.63897705]
[1693797647316,0.041,26085.0,26084.0,1.65123705]
[1693797647506,0.042,26085.0,26084.0,1.67395705]
[1693797647713,0.042,26085.0,26084.0,1.67323705]
[1693797647960,0.041,26085.0,26084.0,1.69579325]
[1693797648236,0.042,26085.0,26084.0,1.71959325]
[1693797648455,0.042,26085.0,26084.0,1.61013149]
[1693797648595,0.041,26085.0,26084.0,1.45043149]
[1693797648805,0.041,26085.0,26084.0,1.61577149]
[1693797648806,0.042,26085.0,26084.0,1.61577149]
[1693797649002,0.042,26085.0,26084.0,1.61817149]
[1693797649208,0.042,26085.0,26084.0,1.61529149]
[1693797649574,0.041,26085.0,26084.0,1.58921149]
[1693797649760,0.042,26085.0,26084.0,1.61289149]
[1693797649885,0.002,26085.0,26084.0,1.60197149]
[1693797650252,0.002,26085.0,26084.0,1.60977149]
[1693797650458,0.042,26085.0,26084.0,1.60809149]
[1693797650660,0.042,26085.0,26084.0,1.45653149]
[1693797650882,0.042,26085.0,26084.0,1.45395149]
[1693797651148,0.042,26085.0,26084.0,1.45365149]
[1693797651386,0.042,26085.0,26084.0,1.45473149]
[1693797651585,0.042,26085.0,26084.0,1.45449149]
[1693797651982,0.042,26085.0,26084.0,1.45311149]
[1693797652229,0.042,26085.0,26084.0,1.45401149]
[1693797652430,0.042,26085.0,26084.0,1.45443149]
[1693797652566,0.042,26085.0,26084.0,1.45413149]
[1693797652766,0.042,26085.0,26084.0,1.45167149]
[1693797652974,0.042,26085.0,26084.0,1.45143149]
[1693797653194,0.042,26085.0,26084.0,1.45035149]
[1693797653393,0.042,26085.0,26084.0,1.44789149]
[1693797653594,0.042,26085.0,26084.0,1.44639149]
[1693797653930,0.042,26085.0,26084.0,1.44729149]
[1693797654071,0.042,26085.0,26084.0,1.44753149]
[1693797654250,0.042,26085.0,26084.0,0.50298851]
[1693797654251,0.4542232,26085.0,26084.0,0.50298851]
[1693797654453,0.4542232,26085.0,26084.0,0.72969022]
[1693797654700,0.4542232,26085.0,26084.0,0.68433712]
[1693797655073,0.4542232,26085.0,26084.0,0.73841338]
[1693797655278,0.4532232,26085.0,26084.0,0.71341338]
[1693797655483,0.4542232,26085.0,26084.0,0.73841338]
[1693797655916,0.5342232,26085.0,26084.0,0.69308858]
[1693797656123,0.2907,26085.0,26084.0,0.66808858]
[1693797656292,0.57709585,26085.0,26084.0,0.69308858]
[1693797656515,0.59609585,26085.0,26084.0,0.30576694]
[1693797656718,0.59809585,26085.0,26084.0,0.19474313]
[1693797656922,0.2,26083.0,26082.0,0.22671556]
[1693797657097,0.80648678,26083.0,26082.0,0.09069175]
[1693797657304,0.80648678,26083.0,26081.0,0.22671556]
[1693797657305,0.14,26082.0,26081.0,0.22671556]
[1693797657560,0.02,26081.0,26080.0,0.13602381]
[1693797657740,0.08,26081.0,26080.0,0.13602381]
[1693797658694,0.08,26081.0,26080.0,0.22665719]
[1693797658695,0.14,26081.0,26080.0,0.22665719]
[1693797658897,0.2994,26080.0,26079.0,0.09063338]
[1693797659101,0.56550225,26080.0,26079.0,0.09063338]
[1693797659730,0.56550225,26080.0,26077.0,0.22665719]
[1693797659903,0.45580225,26080.0,26079.0,0.05128697]
[1693797660061,0.56550225,26080.0,26079.0,0.05128697]
[1693797660257,0.04,26078.0,26077.0,0.22665719]
[1693797660591,0.1497,26078.0,26077.0,0.52665719]
[1693797661105,0.1697,26078.0,26077.0,0.09063338]
[1693797661582,0.1717,26078.0,26077.0,0.11463338]
[1693797661794,0.1917,26078.0,26077.0,0.11463338]
[1693797662177,0.48663088,26078.0,26077.0,0.11463338]
[1693797662378,0.48863088,26078.0,26077.0,0.13863338]
[1693797663327,0.1937,26078.0,26077.0,0.13863338]
[1693797664579,0.1937,26078.0,26077.0,0.048]
[1693797664915,0.1737,26078.0,26077.0,0.09934823]
[1693797665630,0.41051964,26078.0,26077.0,0.09934823]
[1693797665866,0.66078678,26078.0,26077.0,0.09934823]
[1693797666079,0.08,26074.0,26073.0,0.22665719]
[1693797666314,0.06,26073.0,26072.0,0.22665719]
[1693797666522,0.06,26073.0,26072.0,0.09063338]
[1693797667106,0.32897742,26073.0,26072.0,0.09063338]
[1693797667736,0.1697,26072.0,26071.0,0.13602381]
[1693797667941,0.2794,26072.0,26071.0,0.22656991]
[1693797668147,0.2794,26072.0,26071.0,0.0905461]
[1693797668556,0.06,26071.0,26070.0,0.22656991]
[1693797668766,0.06,26071.0,26070.0,0.0905461]
[1693797669434,0.06,26071.0,26069.0,0.0905461]
[1693797669435,0.14,26071.0,26069.0,0.0905461]
[1693797669623,0.06,26069.0,26068.0,0.22656991]
[1693797669824,0.06,26069.0,26068.0,0.09049639]
[1693797670252,0.32779379,26069.0,26068.0,0.09049639]
[1693797670482,0.32779379,26069.0,26068.0,0.09049609]
[1693797670917,0.32779379,26069.0,26067.0,0.22624023]
[1693797671129,0.1697,26068.0,26067.0,0.67946495]
[1693797671329,0.26779379,26069.0,26067.0,0.67946495]
[1693797671330,0.26779379,26069.0,26068.0,0.33326368]
[1693797671529,0.39249379,26069.0,26068.0,0.33426368]
[1693797671732,0.37749379,26069.0,26068.0,0.33326368]
[1693797671972,0.29575664,26069.0,26068.0,0.33426368]
[1693797672155,0.30175664,26069.0,26068.0,0.33426368]
[1693797672921,0.38175664,26069.0,26068.0,0.33426368]
[1693797673122,0.76884342,26069.0,26068.0,0.33426368]
[1693797673321,0.87854342,26069.0,26068.0,0.33426368]
[1693797673520,0.87854342,26069.0,26068.0,0.38203081]
[1693797673855,0.87254342,26069.0,26068.0,0.38203081]
[1693797674018,0.88754342,26069.0,26068.0,0.38303081]
[1693797675452,0.2257,26069.0,26068.0,0.38303081]
[1693797676361,0.1457,26069.0,26068.0,0.53786552]
[1693797676627,0.036,26069.0,26068.0,1.15483759]
[1693797676832,0.036,26069.0,26068.0,1.15177759]
[1693797677178,0.036,26069.0,26068.0,1.14565759]
[1693797677398,0.036,26069.0,26068.0,1.14397759]
[1693797677603,0.036,26069.0,26068.0,1.14277759]
[1693797677805,0.036,26069.0,26068.0,1.15129759]
[1693797677984,0.036,26069.0,26068.0,1.15351759]
[1693797678183,0.036,26069.0,26068.0,1.15237759]
[1693797678392,0.036,26069.0,26068.0,1.15249759]
[1693797678601,0.036,26069.0,26068.0,1.15015759]
[1693797678805,0.036,26069.0,26068.0,1.15075759]
[1693797679008,0.036,26069.0,26068.0,1.13503759]
[1693797679218,0.036,26069.0,26068.0,1.07011759]
[1693797679414,0.036,26069.0,26068.0,1.06511759]
[1693797680039,0.03473399,26069.0,26068.0,1.06511759]
[1693797680187,0.03438866,26069.0,26068.0,1.06511759]
[1693797680394,0.03368777,26069.0,26068.0,1.06511759]
[1693797681473,0.03368777,26069.0,26068.0,0.67803081]
[1693797681877,0.03368777,26069.0,26068.0,0.37803081]
[1693797682487,0.32763908,26069.0,26068.0,0.37803081]
[1693797682938,0.71472586,26069.0,26068.0,0.37803081]
[1693797683178,0.73472586,26069.0,26068.0,0.37803081]
[1693797683326,0.73472586,26069.0,26068.0,0.33026368]
[1693797683809,0.73472586,26069.0,26068.0,0.37803358]
[1693797684914,0.71603809,26069.0,26068.0,0.37703358]
[1693797685204,0.73503809,26069.0,26068.0,0.37703358]
[1693797686029,0.73503809,26069.0,26068.0,0.37603358]
[1693797686030,0.72003809,26069.0,26068.0,0.37603358]
[1693797686250,0.73403809,26069.0,26068.0,0.37603358]
[1693797686434,0.80103809,26069.0,26068.0,0.37603358]
[1693797686854,0.84903809,26069.0,26068.0,0.37603358]
[1693797686999,0.88903809,26069.0,26068.0,0.37603358]
[1693797687400,1.04251609,26069.0,26068.0,0.37603358]
[1693797687598,1.04251609,26069.0,26068.0,0.32826368]
[1693797688164,0.97367806,26069.0,26068.0,0.32817803]
[1693797688282,0.59508678,26069.0,26068.0,0.32817803]
[1693797688491,0.8425472,26069.0,26068.0,0.32817803]
[1693797688695,0.8425472,26069.0,26068.0,0.37876639]
[1693797689345,0.9960272,26069.0,26068.0,0.32817803]
[1693797690990,0.02,26067.0,26065.0,0.020099]
[1693797691197,0.49678678,26066.0,26065.0,0.020099]
[1693797692454,0.61678678,26066.0,26065.0,0.020099]
[1693797692903,0.63078678,26066.0,26065.0,0.020099]
[1693797693671,0.78048678,26066.0,26065.0,0.020099]
[1693797693889,0.78548678,26066.0,26065.0,0.020099]
[1693797694092,0.80948678,26066.0,26065.0,0.020099]
[1693797694296,1.03324066,26066.0,26065.0,0.020099]
[1693797694452,0.76648678,26066.0,26065.0,0.020099]
[1693797694628,0.81448678,26066.0,26065.0,0.020099]
[1693797696153,0.79048678,26066.0,26065.0,0.020099]
[1693797696631,1.05322041,26066.0,26065.0,0.020099]
[1693797697051,0.94352041,26066.0,26065.0,0.020099]
[1693797697515,0.70478678,26066.0,26065.0,0.020099]
[1693797697716,0.97103927,26066.0,26065.0,0.020099]
[1693797698161,0.70478678,26066.0,26065.0,0.020099]
[1693797698357,0.99121754,26066.0,26065.0,0.020099]
[1693797698795,0.81448678,26066.0,26065.0,0.020099]
[1693797699014,0.02,26062.0,26057.0,0.110463]
[1693797699220,0.1097,26058.0,26057.0,0.020099]
[1693797699425,0.1097,26058.0,26057.0,0.110463]
[1693797699821,0.1097,26058.0,26057.0,0.16439509]